bitfinex-derivatives/quotes_BTCF0:USTF0_20250222
["timestamp","ask_amount","ask_price","bid_price","bid_amount"]
[1740204664584,0.05239552,96501.0,96500.0,2.83346853]
[1740204665180,0.05239552,96501.0,96500.0,2.87558351]
[1740204665577,0.3608,96531.0,96500.0,3.02911212]
[1740204665878,0.20876064,96530.0,96529.0,0.2072081]
[1740204666075,0.21876064,96530.0,96529.0,0.04210916]
[1740204666277,0.21876064,96530.0,96529.0,0.22340579]
[1740204666475,0.21876064,96530.0,96529.0,0.01619769]
[1740204666674,0.0518068,96521.0,96502.0,0.0644]
[1740204666883,0.2072618,96504.0,96503.0,0.13144]
[1740204667085,0.2172618,96504.0,96503.0,0.338704]
[1740204667274,0.2172618,96504.0,96503.0,0.0314]
[1740204667471,0.2172618,96504.0,96503.0,0.238664]
[1740204667877,0.2172618,96504.0,96503.0,0.25486298]
[1740204668280,0.2172618,96504.0,96503.0,0.28078135]
[1740204668480,0.2072618,96504.0,96503.0,0.28078135]
[1740204668688,0.2082618,96504.0,96503.0,0.38082135]
[1740204668988,0.2082618,96504.0,96503.0,0.35490298]
[1740204669177,0.2082618,96504.0,96503.0,0.38082123]
[1740204669377,0.2082618,96504.0,96503.0,0.35490298]
[1740204669577,0.2182618,96504.0,96503.0,0.35490298]
[1740204669879,0.2192618,96504.0,96503.0,0.14863898]
[1740204670083,0.2192618,96504.0,96503.0,0.35590298]
[1740204670889,0.2192618,96504.0,96503.0,0.25586298]
[1740204671676,0.2192618,96504.0,96503.0,0.04859898]
[1740204671876,0.2192618,96504.0,96503.0,0.25586298]
[1740204678393,0.2192618,96504.0,96503.0,0.28178123]
[1740204678688,0.2192618,96504.0,96503.0,0.29798014]
[1740204681192,0.2525618,96504.0,96503.0,0.29798014]
[1740204681395,0.2525618,96504.0,96503.0,0.27206189]
[1740204682994,0.2525618,96504.0,96503.0,0.06479789]
[1740204683994,0.2525618,96504.0,96503.0,0.27206189]
[1740204684389,0.2525618,96504.0,96503.0,0.25586291]
[1740204686098,0.2525618,96504.0,96503.0,0.04859891]
[1740204686288,0.2525618,96504.0,96503.0,0.25586291]
[1740204688498,0.2525618,96504.0,96503.0,0.25586293]
[1740204691603,0.2525618,96504.0,96503.0,0.28178123]
[1740204694602,0.2525618,96504.0,96503.0,0.25586293]
[1740204695199,0.2525618,96504.0,96503.0,0.27206186]
[1740204697807,0.2425618,96504.0,96503.0,0.27206186]
[1740204698001,0.2525618,96504.0,96503.0,0.27206186]
[1740204698202,0.2425618,96504.0,96503.0,0.27206186]
[1740204698595,0.2525618,96504.0,96503.0,0.27206186]
[1740204698801,0.2425618,96504.0,96503.0,0.27206186]
[1740204699208,0.2525618,96504.0,96503.0,0.27206186]
[1740204700209,0.2525618,96504.0,96503.0,0.28502099]
[1740204700605,0.2425618,96504.0,96503.0,0.31093926]
[1740204700800,0.2525618,96504.0,96503.0,0.31093926]
[1740204701001,0.2092618,96504.0,96503.0,0.33564033]
[1740204701303,0.002,96504.0,96503.0,0.33564033]
[1740204701802,0.2092618,96504.0,96503.0,0.33564033]
[1740204702210,0.2092618,96504.0,96503.0,0.32267958]
[1740204702512,0.2092618,96504.0,96503.0,0.31296059]
[1740204704203,0.2092618,96504.0,96503.0,0.41300059]
[1740204704408,0.2092618,96504.0,96503.0,0.3968023]
[1740204705211,0.2092618,96504.0,96503.0,0.58195072]
[1740204707307,0.2092618,96504.0,96503.0,0.59814902]
[1740204708518,0.2092618,96504.0,96503.0,0.4130006]
[1740204712906,0.002,96504.0,96503.0,0.4130006]
[1740204713415,0.002,96504.0,96503.0,0.3968023]
[1740204713820,0.002,96504.0,96503.0,0.380604]
[1740204714016,0.002,96504.0,96503.0,0.39680229]
[1740204714416,0.002,96504.0,96503.0,0.36590229]
[1740204714615,0.2092618,96504.0,96503.0,0.35590229]
[1740204714822,0.2092618,96504.0,96503.0,0.32450229]
[1740204715020,0.2092618,96504.0,96503.0,0.22446229]
[1740204715221,0.2092618,96504.0,96503.0,0.32446229]
[1740204715523,0.2092618,96504.0,96503.0,0.34066059]
[1740204716222,0.2092618,96504.0,96503.0,0.35066059]
[1740204716417,0.2092618,96504.0,96503.0,0.34066059]
[1740204716621,0.2092618,96504.0,96503.0,0.35066059]
[1740204718926,0.2092618,96504.0,96503.0,0.34066059]
[1740204719233,0.2092618,96504.0,96503.0,0.25066059]
[1740204719435,0.2092618,96504.0,96503.0,0.35066059]
[1740204720632,0.2092618,96504.0,96503.0,0.3344623]
[1740204721034,0.2092618,96504.0,96503.0,0.1171983]
[1740204721332,0.2192618,96504.0,96503.0,0.1171983]
[1740204721532,0.2192618,96504.0,96503.0,0.2036615]
[1740204722436,0.2192618,96504.0,96503.0,0.4109255]
[1740204723638,0.2192618,96504.0,96503.0,0.42712486]
[1740204724939,0.2192618,96504.0,96503.0,0.24066166]
[1740204725131,0.5800618,96504.0,96503.0,0.24066166]
[1740204725436,0.5800618,96504.0,96503.0,0.26658064]
[1740204726633,0.5800618,96504.0,96503.0,0.24066166]
[1740204727833,0.73515356,96504.0,96503.0,0.24066166]
[1740204731733,0.73515356,96504.0,96503.0,0.24066167]
[1740204731934,0.5800618,96504.0,96503.0,0.24066167]
[1740204735240,0.5800618,96504.0,96503.0,0.03339767]
[1740204736639,0.5800618,96504.0,96503.0,0.24066167]
[1740204737739,0.5800618,96504.0,96503.0,0.03339767]
[1740204748143,0.5800618,96504.0,96503.0,0.01719937]
[1740204748853,0.5800618,96504.0,96503.0,0.001]
[1740204749450,0.5800618,96504.0,96503.0,0.208264]
[1740204749655,0.73515356,96504.0,96503.0,0.208264]
[1740204751852,0.73515356,96504.0,96503.0,0.001]
[1740204755147,0.73515356,96504.0,96503.0,0.208264]
[1740204757748,0.73515356,96504.0,96503.0,0.001]
[1740204758760,0.5800618,96504.0,96503.0,0.001]
[1740204760448,0.5800618,96504.0,96503.0,0.208264]
[1740204762560,0.2192618,96504.0,96503.0,0.208264]
[1740204762757,0.2092618,96504.0,96503.0,0.208264]
[1740204762959,0.2192618,96504.0,96503.0,0.3947272]
[1740204763555,0.2092618,96504.0,96503.0,0.3947272]
[1740204763759,0.2192618,96504.0,96503.0,0.3947272]
[1740204764062,0.2192618,96504.0,96503.0,0.41092536]
[1740204766059,0.2192618,96504.0,96503.0,0.22446217]
[1740204766573,0.2092618,96504.0,96503.0,0.22446217]
[1740204766958,0.2092618,96504.0,96503.0,0.208264]
[1740204767359,0.2192618,96504.0,96503.0,0.208264]
[1740204775965,0.2092618,96504.0,96503.0,0.208264]
[1740204776273,0.2192618,96504.0,96503.0,0.208264]
[1740204778868,0.2092618,96504.0,96503.0,0.208264]
[1740204779773,0.2192618,96504.0,96503.0,0.208264]
[1740204784074,0.2092618,96504.0,96503.0,0.208264]
[1740204784283,0.2192618,96504.0,96503.0,0.208264]
[1740204784578,0.2092618,96504.0,96503.0,0.208264]
[1740204784772,0.2192618,96504.0,96503.0,0.208264]
[1740204785773,0.012,96504.0,96503.0,0.218264]
[1740204785975,0.2192618,96504.0,96503.0,0.218264]
[1740204787986,0.2192618,96504.0,96503.0,0.318264]
[1740204789183,0.2192618,96504.0,96503.0,0.56614097]
[1740204792677,0.2192618,96504.0,96503.0,0.318264]
[1740204794080,0.2092618,96504.0,96503.0,0.318264]
[1740204794483,0.2192618,96504.0,96503.0,0.318264]
[1740204794683,0.2092618,96504.0,96503.0,0.318264]
[1740204795290,0.2192618,96504.0,96503.0,0.318264]
[1740204797184,0.2505618,96504.0,96503.0,0.318264]
[1740204802085,0.2405618,96504.0,96503.0,0.318264]
[1740204802883,0.2505618,96504.0,96503.0,0.318264]
[1740204804091,0.2505618,96504.0,96503.0,0.33446172]
[1740204804790,0.2505618,96504.0,96503.0,0.58318709]
[1740204805592,0.2505618,96504.0,96503.0,0.59938481]
[1740204806288,0.2505618,96504.0,96503.0,0.58318709]
[1740204806880,0.2810618,96504.0,96503.0,0.58318709]
[1740204807190,0.2810618,96504.0,96503.0,0.56698937]
[1740204809296,0.2810618,96504.0,96503.0,0.318264]
[1740204812296,0.2710618,96504.0,96503.0,0.318264]
[1740204812493,0.2810618,96504.0,96503.0,0.318264]
[1740204817300,0.2810618,96504.0,96503.0,0.56705884]
[1740204819302,0.2810618,96504.0,96503.0,0.58325652]
[1740204821203,0.2810618,96504.0,96503.0,0.56705884]
[1740204822904,0.0638,96504.0,96503.0,0.56705884]
[1740204823505,0.2710618,96504.0,96503.0,0.56705884]
[1740204824104,0.2710618,96504.0,96503.0,0.56701884]
[1740204824904,0.2710618,96504.0,96503.0,0.318224]
[1740204825098,0.0638,96504.0,96503.0,0.318224]
[1740204825500,0.2710618,96504.0,96503.0,0.318224]
[1740204825796,0.2710618,96504.0,96503.0,0.33442163]
[1740204827104,0.2710618,96504.0,96503.0,0.318224]
[1740204828293,0.2710618,96504.0,96503.0,0.33442163]
[1740204830409,0.002,96504.0,96503.0,0.33442163]
[1740204830607,0.2590758,96507.0,96506.0,0.2072575]
[1740204830798,0.2590758,96507.0,96506.0,0.23345513]
[1740204831809,0.2610758,96507.0,96506.0,0.23345513]
[1740204834202,0.0327,96511.0,96510.0,0.2072489]
[1740204834404,0.0638,96519.0,96510.0,0.01]
[1740204834708,0.0638,96519.0,96512.0,0.2172446]
[1740204834909,0.0638,96519.0,96512.0,0.23020065]
[1740204835207,0.0638,96519.0,96512.0,0.24639571]
[1740204835405,0.0638,96519.0,96512.0,0.34635571]
[1740204835803,0.2710307,96519.0,96512.0,0.34635571]
[1740204836195,0.0638,96519.0,96512.0,0.34635571]
[1740204836401,0.2710297,96519.0,96512.0,0.34635571]
[1740204836710,0.0326,96519.0,96512.0,0.34635571]
[1740204837009,0.36232096,96520.0,96512.0,0.34635571]
[1740204837010,0.15509176,96520.0,96512.0,0.34635571]
[1740204837210,0.15509176,96520.0,96512.0,0.3172046]
[1740204837509,0.00115538,96513.0,96512.0,0.34635558]
[1740204837710,0.15509176,96520.0,96519.0,0.2072296]
[1740204838010,0.15509176,96520.0,96519.0,0.59422459]
[1740204838508,0.15509176,96520.0,96519.0,0.62602459]
[1740204838901,0.15509176,96520.0,96519.0,0.62702459]
[1740204839805,0.15609176,96520.0,96519.0,0.62802459]
[1740204840010,0.15609176,96520.0,96519.0,0.72798459]
[1740204840916,0.001,96520.0,96519.0,0.72798459]
[1740204841299,0.0331,96524.0,96523.0,0.207221]
[1740204841503,0.0331,96524.0,96523.0,0.23341599]
[1740204841710,0.0332,96528.0,96523.0,0.05819499]
[1740204841905,0.0332,96528.0,96527.0,0.2172124]
[1740204842207,0.0332,96528.0,96527.0,0.23340739]
[1740204843914,0.0332,96528.0,96527.0,0.23540739]
[1740204844308,0.0352,96528.0,96527.0,0.23540739]
[1740204844615,0.0352,96528.0,96527.0,0.23540688]
[1740204846206,0.2424103,96528.0,96527.0,0.23540688]
[1740204846516,0.0352,96528.0,96527.0,0.23540688]
[1740204847112,0.2424103,96528.0,96527.0,0.23540688]
[1740204848815,0.2424103,96528.0,96527.0,0.33536688]
[1740204849216,0.2424103,96528.0,96527.0,0.3191724]
[1740204849414,0.2424103,96528.0,96527.0,0.33536688]
[1740204859529,0.0352,96528.0,96527.0,0.33536688]
[1740204860726,0.2424103,96528.0,96527.0,0.33536688]
[1740204860926,0.0352,96528.0,96527.0,0.33536688]
[1740204861133,0.2424103,96528.0,96527.0,0.33536688]
[1740204861430,0.0352,96528.0,96527.0,0.33536688]
[1740204862822,0.2424103,96528.0,96527.0,0.33536688]
[1740204863133,0.0352,96528.0,96527.0,0.33536688]
[1740204865039,0.0352,96528.0,96527.0,0.36716688]
[1740204868822,0.002,96528.0,96527.0,0.36716688]
[1740204869337,0.002,96528.0,96527.0,0.55365318]
[1740204871139,0.002,96528.0,96527.0,0.56660872]
[1740204871535,0.002,96528.0,96527.0,0.5925198]
[1740204872536,0.002,96528.0,96527.0,0.56660872]
[1740204873440,0.002,96528.0,96527.0,0.5666087]
[1740204873640,0.002,96528.0,96527.0,0.3801224]
[1740204874635,0.002,96528.0,96527.0,0.3963168]
[1740204877246,0.002,96528.0,96527.0,0.38336128]
[1740204878146,0.002,96528.0,96527.0,0.36716688]
[1740204879245,0.002,96528.0,96527.0,0.38012237]
[1740204885038,0.002,96528.0,96527.0,0.38012225]
[1740204887550,0.002,96528.0,96527.0,0.40603306]
[1740204888354,0.2092103,96528.0,96527.0,0.40603306]
[1740204888852,0.2092103,96528.0,96527.0,0.40603297]
[1740204889246,0.002,96528.0,96527.0,0.40603297]
[1740204889447,0.2092103,96528.0,96527.0,0.40603297]
[1740204889647,0.2092103,96528.0,96527.0,0.38012216]
[1740204890746,0.2092103,96528.0,96527.0,0.36716676]
[1740204890946,0.2092103,96528.0,96527.0,0.38012216]
[1740204891145,0.002,96528.0,96527.0,0.38012216]
[1740204891948,0.002,96528.0,96527.0,0.75711642]
[1740204892154,0.00155421,96548.0,96528.0,0.0518021]
[1740204892350,0.2922803,96542.0,96541.0,0.2171802]
[1740204892554,0.2922803,96542.0,96541.0,0.34624996]
[1740204892856,0.2922803,96542.0,96541.0,0.34624834]
[1740204893957,0.30484297,96542.0,96541.0,0.34624834]
[1740204894156,0.31084297,96542.0,96541.0,0.34624834]
[1740204894658,0.31084297,96542.0,96541.0,0.24632834]
[1740204894859,0.31084297,96542.0,96541.0,0.34620834]
[1740204895356,0.31084297,96542.0,96541.0,0.36693505]
[1740204895556,0.34254297,96542.0,96541.0,0.36693505]
[1740204896749,0.34254297,96542.0,96541.0,0.36693497]
[1740204896951,0.34254297,96542.0,96541.0,0.26705497]
[1740204897260,0.34254297,96542.0,96541.0,0.36693497]
[1740204898261,0.34254297,96542.0,96541.0,0.34620826]
[1740204900354,0.34254297,96542.0,96541.0,0.33325286]
[1740204907569,0.34254297,96542.0,96541.0,0.33325285]
[1740204914467,0.34254297,96542.0,96541.0,0.34620697]
[1740204914971,0.34254297,96542.0,96541.0,0.37211522]
[1740204916271,0.34254297,96542.0,96541.0,0.16493502]
[1740204916567,0.34254297,96542.0,96541.0,0.37211742]
[1740204916870,0.34254297,96542.0,96541.0,0.13902677]
[1740204917371,0.34254297,96542.0,96541.0,0.33325505]
[1740204919368,0.34254297,96542.0,96541.0,0.34620921]
[1740204929072,0.34254297,96542.0,96541.0,0.34620925]
[1740204932583,0.34254297,96542.0,96541.0,0.33325509]
[1740204932773,0.31084297,96542.0,96541.0,0.33325509]
[1740204932974,0.31084297,96542.0,96541.0,0.69405509]
[1740204933981,0.31084297,96542.0,96541.0,0.6778624]
[1740204935085,0.31084297,96542.0,96541.0,0.69405415]
[1740204936082,0.31084297,96542.0,96541.0,0.6778624]
[1740204944978,0.31084297,96542.0,96541.0,0.3170624]
[1740204945693,0.31084297,96542.0,96541.0,0.10988]
[1740204945894,0.31084297,96542.0,96541.0,0.3170624]
[1740204947187,0.31084297,96542.0,96541.0,0.2171824]
[1740204947383,0.31084297,96542.0,96541.0,0.3170224]
[1740204959284,0.31084297,96542.0,96541.0,0.09984]
[1740204965303,0.10365827,96542.0,96538.0,0.04607]
[1740204965510,0.2071867,96539.0,96538.0,0.04607]
[1740204965898,0.2071867,96539.0,96537.0,0.24855711]
[1740204965899,0.2071888,96538.0,96537.0,0.24855711]
[1740204967102,0.2081888,96538.0,96537.0,0.24855711]
[1740204967301,0.2131888,96538.0,96537.0,0.24855711]
[1740204967701,0.2071953,96535.0,96534.0,0.24855711]
[1740204968101,0.2399953,96535.0,96534.0,0.24855711]
[1740204969411,0.2439953,96535.0,96534.0,0.24855711]
[1740204971210,0.6047953,96535.0,96534.0,0.24855711]
[1740204972002,0.2071996,96533.0,96532.0,0.03105538]
[1740204972406,0.2372996,96533.0,96532.0,0.00015538]
[1740204972605,0.2072039,96531.0,96530.0,0.15539958]
[1740204973005,0.2072124,96527.0,96526.0,0.24698505]
[1740204973213,0.2072232,96522.0,96518.0,0.12366976]
[1740204973514,0.5670232,96522.0,96518.0,0.12366976]
[1740204973716,0.5971232,96522.0,96518.0,0.12366976]
[1740204974005,0.5961232,96522.0,96518.0,0.12366976]
[1740204975413,0.5961232,96522.0,96521.0,0.3102377]
[1740204976011,0.5961232,96522.0,96521.0,0.001]
[1740204976216,0.6281232,96522.0,96521.0,0.001]
[1740204978912,0.6593232,96522.0,96521.0,0.001]
[1740204988823,1.0201232,96522.0,96521.0,0.001]
[1740204989020,0.9889232,96522.0,96521.0,0.001]
[1740204993721,0.9569232,96522.0,96521.0,0.001]
[1740204994831,0.2353232,96522.0,96521.0,0.001]
[1740204995031,0.9569232,96522.0,96521.0,0.001]
[1740205000733,0.9268232,96522.0,96521.0,0.001]
[1740205004927,0.9268232,96522.0,96521.0,0.2082253]
[1740205005134,0.2052232,96522.0,96521.0,0.2082253]
[1740205005336,0.05038837,96522.0,96521.0,0.2710253]
[1740205005636,0.00048837,96522.0,96521.0,0.2710253]
[1740205005829,0.29362126,96523.0,96522.0,0.2072232]
[1740205006031,0.04009866,96523.0,96522.0,0.2172232]
[1740205006235,0.0706,96526.0,96525.0,0.2072167]
[1740205006438,0.0706,96526.0,96525.0,0.2172167]
[1740205006736,0.0706,96526.0,96525.0,0.5780167]
[1740205006942,0.00015538,96531.0,96525.0,0.3708]
[1740205007132,0.00015538,96531.0,96530.0,0.217206]
[1740205007435,0.00015538,96531.0,96530.0,0.317046]
[1740205008734,0.00115538,96531.0,96530.0,0.317046]
[1740205009134,0.20835928,96531.0,96530.0,0.317046]
[1740205010437,0.23955928,96531.0,96530.0,0.307046]
[1740205010834,0.26985928,96531.0,96530.0,0.307046]
[1740205011238,0.26985928,96531.0,96530.0,0.317046]
[1740205011433,0.26985928,96531.0,96530.0,0.217206]
[1740205011634,0.26985928,96531.0,96530.0,0.317046]
[1740205011943,0.26985928,96531.0,96530.0,0.307046]
[1740205012145,0.06265538,96531.0,96530.0,0.307046]
[1740205012443,0.26987998,96531.0,96530.0,0.317046]
[1740205012643,0.26987998,96531.0,96530.0,0.307046]
[1740205012840,0.26987998,96531.0,96530.0,0.09984]
[1740205013031,0.2590356,96530.0,96529.0,0.0518072]
[1740205013237,0.2590356,96530.0,96529.0,0.3588761]
[1740205013434,0.2590356,96530.0,96529.0,0.2590361]
[1740205013746,0.2590356,96530.0,96529.0,0.2072289]
[1740205014138,0.2610356,96530.0,96529.0,0.2072289]
[1740205014334,0.2610356,96530.0,96529.0,0.2172289]
[1740205014742,0.2610356,96530.0,96529.0,0.2072289]
[1740205014943,0.2610356,96530.0,96529.0,0.2172289]
[1740205016644,0.2610356,96530.0,96529.0,0.01]
[1740205016946,0.2610356,96530.0,96529.0,0.2172289]
[1740205017448,0.2610356,96530.0,96529.0,0.2072289]
[1740205018038,0.2610356,96530.0,96529.0,0.2172289]
[1740205018239,0.2610356,96530.0,96529.0,0.01]
[1740205018441,0.207231,96528.0,96527.0,0.09984]
[1740205019550,0.207231,96528.0,96524.0,0.2072393]
[1740205019551,0.2072461,96521.0,96520.0,0.2590462]
[1740205019752,0.2072461,96521.0,96520.0,0.3688862]
[1740205020945,0.2072461,96521.0,96520.0,0.3588862]
[1740205021450,0.2716461,96521.0,96520.0,0.3070763]
[1740205021651,0.2716461,96521.0,96520.0,0.001]
[1740205021850,0.2716461,96521.0,96520.0,0.10084]
[1740205022947,0.2716461,96521.0,96520.0,0.3080882]
[1740205023645,0.2716461,96521.0,96520.0,0.10084]
[1740205024050,0.28193645,96521.0,96520.0,0.3080882]
[1740205027847,0.64273645,96521.0,96520.0,0.3080882]
[1740205043173,0.28193645,96521.0,96520.0,0.3080882]
[1740205043483,0.64273645,96521.0,96520.0,0.3080882]
[1740205046573,0.64273645,96521.0,96520.0,0.10084]
[1740205047083,0.64273645,96521.0,96520.0,0.3080882]
[1740205049678,0.64273645,96521.0,96520.0,0.10084]
[1740205050276,0.64273645,96521.0,96520.0,0.3080882]
[1740205052390,0.64273645,96521.0,96520.0,0.10084]
[1740205053982,0.64273645,96521.0,96520.0,0.3080882]
[1740205054189,0.64273645,96521.0,96520.0,0.10084]
[1740205054391,0.64273645,96521.0,96520.0,0.3080882]
[1740205056285,0.28193645,96521.0,96520.0,0.3080882]
[1740205056687,0.64273645,96521.0,96520.0,0.3080882]
[1740205059188,0.64273645,96521.0,96520.0,0.10084]
[1740205059395,0.64273645,96521.0,96520.0,0.3080882]
[1740205060295,0.64273645,96521.0,96520.0,0.2082482]
[1740205072801,0.64273645,96521.0,96520.0,0.001]
[1740205074097,0.64273645,96521.0,96520.0,0.2082482]
[1740205076796,0.28193645,96521.0,96520.0,0.2082482]
[1740205076997,0.64273645,96521.0,96520.0,0.2082482]
[1740205077797,0.28193645,96521.0,96520.0,0.2082482]
[1740205077996,0.64273645,96521.0,96520.0,0.2082482]
[1740205083099,0.28193645,96521.0,96520.0,0.2082482]
[1740205083299,0.64273645,96521.0,96520.0,0.2082482]
[1740205106426,0.64273645,96521.0,96520.0,0.001]
[1740205106618,0.64273645,96521.0,96520.0,0.2082482]
[1740205107014,0.64273645,96521.0,96520.0,0.001]
[1740205107213,0.64273645,96521.0,96520.0,0.2082482]
[1740205107414,0.64273645,96521.0,96520.0,0.001]
[1740205107622,0.2072482,96520.0,96519.0,0.19918516]
[1740205108810,0.2072482,96520.0,96519.0,0.20118516]
[1740205109515,0.2082482,96520.0,96519.0,0.20118516]
[1740205110416,0.9298482,96520.0,96519.0,0.20118516]
[1740205111927,0.9298482,96520.0,96519.0,0.002]
[1740205114030,0.9298482,96520.0,96519.0,0.2092504]
[1740205114527,0.2082482,96520.0,96519.0,0.2092504]
[1740205114824,0.9298482,96520.0,96519.0,0.2092504]
[1740205116526,0.9298482,96520.0,96519.0,0.002]
[1740205124724,0.2082482,96520.0,96519.0,0.002]
[1740205124925,0.9298482,96520.0,96519.0,0.002]
[1740205125625,0.2072632,96513.0,96512.0,0.00015538]
[1740205126029,0.2388632,96513.0,96512.0,0.00015538]
[1740205126928,0.2398632,96513.0,96512.0,0.00015538]
[1740205128133,0.2398632,96513.0,96512.0,0.00115538]
[1740205128730,0.2722632,96513.0,96512.0,0.00115538]
[1740205129635,0.32265782,96513.0,96512.0,0.00115538]
[1740205130923,0.35565782,96513.0,96512.0,0.00115538]
[1740205133933,0.3052632,96513.0,96512.0,0.00115538]
[1740205140842,1.0268632,96513.0,96512.0,0.00115538]
[1740205143643,0.3052632,96513.0,96512.0,0.00115538]
[1740205143832,1.0268632,96513.0,96512.0,0.00115538]
[1740205145137,1.18188499,96513.0,96512.0,0.00115538]
[1740205148346,1.0268632,96513.0,96512.0,0.00115538]
[1740205151347,1.18188499,96513.0,96512.0,0.00115538]
[1740205154651,1.07725783,96513.0,96512.0,0.00115538]
[1740205158662,1.14785783,96513.0,96512.0,0.00115538]
[1740205163972,0.42625783,96513.0,96512.0,0.00115538]
[1740205164164,1.14785783,96513.0,96512.0,0.00115538]
[1740205164962,0.42625783,96513.0,96512.0,0.00115538]
[1740205165166,1.14785783,96513.0,96512.0,0.00115538]
[1740205167163,1.26300425,96513.0,96512.0,0.00115538]
[1740205168169,1.26300425,96513.0,96512.0,0.01411548]
[1740205171773,1.14785783,96513.0,96512.0,0.01411548]
[1740205172169,1.14785783,96513.0,96512.0,0.00115538]
[1740205172375,1.14785783,96513.0,96512.0,0.01411548]
[1740205181091,1.14785783,96513.0,96512.0,0.23758101]
[1740205181292,1.14785783,96513.0,96512.0,0.03031561]
[1740205181992,1.14785783,96513.0,96512.0,0.01411548]
[1740205182585,0.90899463,96513.0,96512.0,0.01411548]
[1740205182788,0.87659463,96513.0,96512.0,0.23758071]
[1740205182997,0.84359463,96513.0,96512.0,0.24758071]
[1740205183189,0.7932,96513.0,96512.0,0.26831506]
[1740205183688,0.4324,96513.0,96512.0,0.26831506]
[1740205183887,0.4324,96513.0,96512.0,0.26831295]
[1740205184490,0.4324,96513.0,96512.0,0.28451067]
[1740205185391,0.4324,96513.0,96512.0,0.26377632]
[1740205185794,0.4324,96513.0,96512.0,0.26377401]
[1740205188194,0.3618,96513.0,96512.0,0.26377401]
[1740205193099,0.001,96513.0,96512.0,0.26377401]
[1740205197896,0.001,96513.0,96512.0,0.24757629]
[1740205199209,0.001,96513.0,96512.0,0.23137878]
[1740205199398,0.001,96513.0,96512.0,0.24757629]
[1740205200806,0.001,96513.0,96512.0,0.34733629]
[1740205202502,0.001,96513.0,96512.0,0.33437829]
[1740205202705,0.001,96513.0,96512.0,0.34733603]
[1740205203598,0.2082632,96513.0,96512.0,0.34733603]
[1740205204002,0.2082632,96513.0,96512.0,0.36353468]
[1740205204605,0.2082632,96513.0,96512.0,0.363537]
[1740205206007,0.2082632,96513.0,96512.0,0.34733835]
[1740205208398,0.2082632,96513.0,96512.0,0.34733837]
[1740205209006,0.001,96513.0,96512.0,0.34733837]
[1740205209207,0.2082632,96513.0,96512.0,0.34733837]
[1740205210396,0.2082632,96513.0,96512.0,0.34733839]
[1740205210804,0.001,96513.0,96512.0,0.34733839]
[1740205213104,0.0518022,96539.0,96528.0,0.207231]
[1740205213305,0.01026545,96532.0,96528.0,0.33614326]
[1740205213513,0.0706,96540.0,96528.0,0.34614326]
[1740205214009,0.01038595,96532.0,96528.0,0.34614326]
[1740205214311,0.0706,96540.0,96528.0,0.36233847]
[1740205214501,0.3941,96529.0,96528.0,0.36233847]
[1740205214906,0.3941,96529.0,96528.0,0.26257847]
[1740205215113,0.3941,96529.0,96528.0,0.36233847]
[1740205216104,0.3941,96529.0,96528.0,0.34614277]
[1740205216305,0.3941,96529.0,96528.0,0.36233773]
[1740205218120,0.3941,96529.0,96528.0,0.36233699]
[1740205220009,0.3941,96529.0,96528.0,0.36233669]
[1740205220618,0.3941,96529.0,96528.0,0.26257669]
[1740205220806,0.3941,96529.0,96528.0,0.36233669]
[1740205221204,0.3941,96529.0,96528.0,0.26257669]
[1740205221403,0.3941,96529.0,96528.0,0.36233669]
[1740205222708,0.3941,96529.0,96528.0,0.34614198]
[1740205223016,0.3941,96529.0,96528.0,0.32994677]
[1740205223815,0.3941,96529.0,96528.0,0.32994674]
[1740205225716,0.3941,96529.0,96528.0,0.316991]
[1740205225917,0.3941,96529.0,96528.0,0.32994674]
[1740205228713,0.3941,96529.0,96528.0,0.34614142]
[1740205231420,0.0333,96529.0,96528.0,0.34614142]
[1740205232832,0.0333,96529.0,96528.0,0.32994674]
[1740205246139,0.0333,96529.0,96528.0,0.34614141]
[1740205249744,0.0333,96529.0,96528.0,0.32994674]
[1740205256760,0.0333,96529.0,96528.0,0.316991]
[1740205257059,0.0333,96529.0,96528.0,0.32994674]
[1740205260555,0.0333,96529.0,96528.0,0.316991]
[1740205260754,0.0333,96529.0,96528.0,0.32994674]
[1740205262153,0.0333,96529.0,96528.0,0.34614142]
[1740205263957,0.0333,96529.0,96528.0,0.34614139]
[1740205265161,0.0333,96529.0,96528.0,0.32994674]
[1740205265953,0.0333,96529.0,96528.0,0.32994672]
[1740205267163,0.0333,96529.0,96528.0,0.32990672]
[1740205267559,0.0333,96529.0,96528.0,0.69070672]
[1740205268466,0.15511427,96543.0,96528.0,0.48347572]
[1740205268761,0.15511427,96543.0,96542.0,0.217201]
[1740205268961,0.15511427,96543.0,96542.0,0.316921]
[1740205269162,0.3608,96580.0,96547.0,0.0517974]
[1740205269360,0.3608,96571.0,96552.0,0.3708]
[1740205269564,0.3608,96571.0,96570.0,0.2071409]
[1740205269755,0.37109568,96571.0,96570.0,0.2071409]
[1740205271062,0.57509408,96571.0,96570.0,0.2071409]
[1740205271269,0.36795538,96571.0,96570.0,0.2071409]
[1740205271762,0.61339408,96571.0,96570.0,0.2071409]
[1740205272668,0.207143,96569.0,96568.0,0.09972]
[1740205272868,0.207143,96569.0,96568.0,0.3068652]
[1740205273172,0.207143,96569.0,96568.0,0.2071452]
[1740205273372,0.207143,96569.0,96568.0,0.3068652]
[1740205273971,0.214143,96569.0,96568.0,0.3068652]
[1740205274168,0.214143,96569.0,96568.0,0.09972]
[1740205274473,0.214143,96569.0,96568.0,0.3068652]
[1740205274870,0.221143,96569.0,96568.0,0.3068652]
[1740205279266,0.581943,96569.0,96568.0,0.3068652]
[1740205279665,0.581943,96569.0,96568.0,0.09972]
[1740205280079,0.581943,96569.0,96568.0,0.2071452]
[1740205280282,0.2589364,96567.0,96566.0,0.2071452]
[1740205281565,0.2659364,96567.0,96566.0,0.2071452]
[1740205281967,0.2071495,96566.0,96565.0,0.3068316]
[1740205282172,0.2071774,96553.0,96550.0,0.0517954]
[1740205282576,0.3013774,96553.0,96552.0,0.20733488]
[1740205283381,0.3083774,96553.0,96552.0,0.31701488]
[1740205283772,0.3083774,96553.0,96552.0,0.30701488]
[1740205284274,0.3083774,96553.0,96552.0,0.31701488]
[1740205284583,0.3143774,96553.0,96552.0,0.30701488]
[1740205284775,0.3143774,96553.0,96552.0,0.10983538]
[1740205284982,0.3143774,96553.0,96552.0,0.09983538]
[1740205285171,0.3143774,96553.0,96552.0,0.00015538]
[1740205285377,0.6751774,96553.0,96552.0,0.00015538]
[1740205286082,0.6751774,96553.0,96552.0,0.20733488]
[1740205292281,0.6751774,96553.0,96552.0,0.00015538]
[1740205292483,0.6751774,96553.0,96552.0,0.20733488]
[1740205292771,0.6751774,96553.0,96552.0,0.00015538]
[1740205293989,0.6751774,96553.0,96552.0,0.20733488]
[1740205298783,0.468,96553.0,96552.0,0.20733488]